bitfinex/quotes_ETHUSD_20250403
["timestamp","ask_amount","ask_price","bid_price","bid_amount"]
[1743710066317,5.59866,1786.2,1785.9,6.841919]
[1743710066915,16.42728023,1786.3,1785.9,6.841909]
[1743710067218,3.0,1786.3,1786.1,6.14876]
[1743710067413,3.0,1786.3,1786.1,0.55]
[1743710067626,3.0,1786.3,1786.1,6.14877]
[1743710068324,3.0,1786.3,1786.1,7.34105391]
[1743710069198,3.0,1786.5,1786.3,5.59806]
[1743710069331,3.0,1786.5,1786.4,0.55]
[1743710069837,5.59725,1786.6,1786.4,0.55]
[1743710070206,3.0,1786.5,1786.2,0.28009282]
[1743710070408,9.37836,1786.3,1786.2,0.28009282]
[1743710070619,25.745657,1786.3,1786.2,0.28009282]
[1743710070937,8.596,1786.3,1786.2,0.28009282]
[1743710071141,6.37777,1786.5,1786.2,6.14835]
[1743710071342,3.0,1786.5,1786.4,0.55]
[1743710072145,8.59753,1786.5,1786.4,0.55]
[1743710072357,3.0,1786.5,1786.4,0.55]
[1743710072509,16.78581662,1786.6,1786.4,0.55]
[1743710072844,6.01634629,1786.6,1786.4,6.14781]
[1743710073065,6.01634629,1786.6,1786.4,7.404067]
[1743710073252,0.42034629,1786.6,1786.4,7.404067]
[1743710073452,3.0,1786.7,1786.4,13.001767]
[1743710073763,12.37643534,1786.9,1786.6,0.55]
[1743710073963,5.59635,1786.9,1786.6,6.1472]
[1743710074197,3.0,1786.8,1786.6,7.321659]
[1743710074475,3.0,1786.8,1786.6,1.724459]
[1743710074633,12.01576,1787.1,1786.8,0.55]
[1743710074823,19.06583598,1787.2,1786.8,6.14658]
[1743710075023,5.59567,1787.1,1786.8,6.14658]
[1743710075359,5.59567,1787.1,1786.8,0.55]
[1743710075870,5.59567,1787.1,1786.8,6.761264]
[1743710076073,3.0,1787.1,1786.8,6.761264]
[1743710076772,8.59575,1787.1,1786.8,1.164674]
[1743710077144,3.0,1787.1,1786.8,6.761264]
[1743710077467,10.83497963,1787.2,1786.8,12.41364126]
[1743710077770,10.83497963,1787.2,1787.0,0.55]
[1743710077967,16.43056963,1787.2,1787.0,0.55]
[1743710078269,5.59565,1787.1,1787.0,0.55]
[1743710078877,10.83497963,1787.2,1787.0,0.55]
[1743710079378,16.43049963,1787.2,1787.0,0.55]
[1743710079564,16.00429499,1787.2,1787.0,0.55]
[1743710080150,5.59565,1787.1,1787.0,0.55]
[1743710080455,6.38244,1787.0,1786.7,0.55]
[1743710080644,6.38244,1787.0,1786.7,1.244387]
[1743710080980,3.0,1786.9,1786.5,5.59738]
[1743710081187,3.0,1786.9,1786.7,0.55]
[1743710081394,8.59641,1786.9,1786.7,0.55]
[1743710081543,8.5964,1786.9,1786.7,0.55]
[1743710081852,3.0,1786.9,1786.7,0.55]
[1743710082048,0.41486072,1787.2,1786.8,0.7811]
[1743710082304,5.95608534,1787.6,1787.4,6.37568]
[1743710082588,0.42674629,1787.8,1787.6,0.55]
[1743710082744,6.02036629,1787.8,1787.5,0.55]
[1743710082937,5.59362,1787.8,1787.5,0.55]
[1743710083142,5.59388,1787.7,1787.3,5.59497]
[1743710083377,5.59414,1787.6,1787.4,0.55]
[1743710083789,11.18784,1787.7,1787.4,0.55]
[1743710084441,3.4289722,1787.8,1787.4,6.759147]
[1743710084645,3.0,1787.8,1787.7,0.55]
[1743710085501,5.59367,1787.8,1787.5,0.55]
[1743710085787,11.18734,1787.8,1787.5,0.55]
[1743710086646,8.59356,1787.8,1787.5,6.14429]
[1743710086846,8.59347,1787.8,1787.5,6.8999577]
[1743710087489,0.8406,1787.9,1787.5,1.3056677]
[1743710087686,0.05,1787.9,1787.6,5.59396]
[1743710088313,3.0,1787.8,1787.5,6.14436]
[1743710088518,3.0,1787.8,1787.5,6.14431]
[1743710088677,8.59358,1787.8,1787.5,0.55]
[1743710089103,8.59358,1787.8,1787.5,6.14435]
[1743710089900,3.0,1787.8,1787.5,7.09344976]
[1743710090213,0.05,1787.9,1787.7,5.59364]
[1743710090418,0.05,1787.9,1787.8,17.42828327]
[1743710090713,0.05,1787.9,1787.8,17.37234499]
[1743710091086,0.05,1787.9,1787.8,17.54721177]
[1743710091392,0.05,1787.9,1787.8,19.86129695]
[1743710091600,0.05,1787.9,1787.8,15.04791196]
[1743710092179,0.05,1787.9,1787.8,14.87304518]
[1743710092526,0.05,1787.9,1787.8,14.87204518]
[1743710093479,0.05,1787.9,1787.8,9.56081373]
[1743710094224,0.05,1787.9,1787.8,15.15181373]
[1743710094710,0.05,1787.9,1787.8,14.87204518]
[1743710096184,0.05,1787.9,1787.8,15.0468989]
[1743710096385,0.05,1787.9,1787.8,9.4558989]
[1743710096719,0.05,1787.9,1787.8,15.0458989]
[1743710096890,0.05,1787.9,1787.8,9.4558989]
[1743710097082,0.05,1787.9,1787.8,15.0458989]
[1743710098214,0.05,1787.9,1787.8,14.87104518]
[1743710098409,0.05,1787.9,1787.8,14.87004518]
[1743710098612,1e-05,1787.9,1787.8,14.87004518]
[1743710098788,1e-05,1787.9,1787.8,17.87004518]
[1743710099318,6.82550071,1788.9,1788.8,0.55]
[1743710099319,0.05,1788.9,1788.8,0.55]
[1743710099616,0.05,1788.9,1788.8,1.164041]
[1743710099821,5.64002,1788.9,1788.8,0.614041]
[1743710100111,5.64002,1788.9,1788.6,0.55]
[1743710100317,14.22915,1788.9,1788.8,0.55]
[1743710100524,14.22915,1788.9,1788.0,0.7672]
[1743710100525,5.59065,1788.7,1787.8,2.31408518]
[1743710100683,5.95608534,1788.7,1787.9,0.82312767]
[1743710100886,5.95608534,1788.7,1788.3,5.59166]
[1743710100887,3.0,1788.6,1788.3,5.59166]
[1743710101124,3.0,1788.6,1788.2,0.7688]
[1743710101125,5.59145,1788.5,1788.2,0.55]
[1743710101420,3.0,1788.6,1788.3,5.59178]
[1743710101711,3.0,1788.6,1788.4,0.559178]
[1743710102101,0.8172,1788.7,1788.5,5.59127]
[1743710102303,5.588,1788.8,1788.6,0.55]
[1743710102304,5.59037,1788.8,1788.6,0.55]
[1743710102504,5.59127,1788.5,1788.4,0.559178]
[1743710102824,5.59206,1788.3,1787.9,11.93707]
[1743710103034,6.40346,1788.3,1788.1,0.55]
[1743710103190,6.34615,1788.1,1787.6,5.59403]
[1743710103534,6.34615,1788.1,1787.5,0.8152]
[1743710103535,5.59334,1787.9,1787.5,5.59429]
[1743710103697,5.59351,1787.8,1787.4,5.59467]
[1743710104023,5.59422,1787.6,1787.2,11.19046]
[1743710104195,0.7995,1787.7,1787.5,5.59428]
[1743710104396,0.7995,1787.7,1787.5,5.59424]
[1743710104590,0.7559,1788.2,1788.0,5.59264]
[1743710104914,0.7559,1788.2,1788.1,0.55]
[1743710105417,6.34811,1788.2,1788.1,0.55]
[1743710105610,6.34811,1788.2,1787.8,6.38554]
[1743710105611,6.34811,1788.2,1787.8,11.97883]
[1743710105921,0.7559,1788.2,1788.1,0.55]
[1743710106128,3.0,1788.3,1788.1,0.55]
[1743710106420,3.0,1788.3,1788.0,0.55]
[1743710106620,6.35053,1788.2,1787.9,0.55]
[1743710106921,6.35168,1787.8,1787.5,5.59435]
[1743710107291,5.59381,1787.7,1787.3,6.714016]
[1743710107504,5.59381,1787.7,1787.3,6.713896]
[1743710107716,5.59381,1787.7,1787.4,0.6713896]
[1743710107914,5.5941,1787.6,1787.2,11.94584]
[1743710108114,6.35167,1787.8,1787.4,5.59457]
[1743710108398,6.35167,1787.8,1787.3,5.59486]
[1743710108399,5.59393,1787.7,1787.3,5.59486]
[1743710108890,11.94539,1787.8,1787.4,5.59453]
[1743710109090,11.94539,1787.8,1787.5,6.14439]
[1743710109091,0.7582,1787.8,1787.5,6.14439]
[1743710109297,3.7582,1787.8,1787.5,7.318142]
[1743710109619,9.35176,1787.8,1787.5,1.723892]
[1743710109929,9.35176,1787.8,1787.6,0.55]
[1743710109930,3.7582,1787.8,1787.6,0.55]
[1743710110729,9.35167,1787.8,1787.4,6.1447]
[1743710110936,5.59396,1787.7,1787.4,0.55]
[1743710111133,3.7582,1787.8,1787.4,0.55]
[1743710111134,9.35169,1787.8,1787.4,6.14458]
[1743710111630,3.7582,1787.8,1787.6,0.55]
[1743710111934,3.8232,1788.0,1787.7,11.18716]
[1743710112230,3.0,1788.0,1787.8,6.14335]
[1743710112429,3.0,1788.0,1787.8,0.55]
[1743710113506,8.59284,1788.0,1787.8,0.55]
[1743710113833,8.59284,1788.0,1787.7,0.55]
[1743710114210,3.0,1788.0,1787.7,7.379001]
[1743710114405,3.0,1788.0,1787.7,7.378911]
[1743710114609,3.0,1788.0,1787.9,0.55]
[1743710114809,0.771,1788.4,1788.2,5.59209]
[1743710115128,6.362,1788.6,1788.3,0.55]
[1743710115912,11.95318,1788.6,1788.3,0.55]
[1743710116229,5.59159,1788.4,1788.1,5.59247]
[1743710116432,6.364,1788.3,1787.5,0.8044]
[1743710116629,6.364,1788.3,1787.6,5.59398]
[1743710116630,6.41825,1788.0,1787.6,5.59398]
[1743710116835,12.01126,1788.0,1787.7,5.59366]
[1743710117030,5.59356,1787.8,1787.4,11.18923]
[1743710117230,6.41908,1787.7,1787.4,5.59458]
[1743710117647,6.41908,1787.7,1787.3,5.59498]
[1743710117648,5.59413,1787.6,1787.3,5.59498]
[1743710117998,6.41908,1787.7,1787.3,5.59488]
[1743710118204,6.41908,1787.7,1787.4,5.59457]
[1743710118701,0.8253,1787.7,1787.5,6.14435]
[1743710118906,0.8253,1787.7,1787.5,0.55]
[1743710119138,6.41924,1787.7,1787.3,11.1899]
[1743710119297,6.41924,1787.7,1787.3,5.59489]
[1743710119504,12.01321,1787.7,1787.3,11.18975]
[1743710119697,6.41924,1787.7,1787.3,5.59486]
[1743710119950,0.8253,1787.7,1787.5,0.55]
[1743710120107,0.8253,1787.7,1787.5,11.73851]
[1743710120309,0.8253,1787.7,1787.5,6.14425]
[1743710120608,0.8253,1787.7,1787.5,0.55]
[1743710121312,0.8151,1788.2,1787.9,5.59289]
[1743710121521,6.40733,1788.2,1788.0,0.55]
[1743710122204,6.40733,1788.2,1787.9,5.59311]
[1743710122840,0.8151,1788.2,1788.0,5.59282]
[1743710123005,0.8151,1788.4,1788.1,6.1424]
[1743710123205,9.40669,1788.4,1788.1,6.1424]
[1743710123839,0.8151,1788.4,1788.1,11.73475]
[1743710124152,3.8151,1788.4,1788.1,6.14237]
[1743710124452,9.40678,1788.4,1788.1,6.14237]
[1743710124750,9.40678,1788.4,1788.1,7.4277473]
[1743710124904,3.8151,1788.4,1788.2,5.59216]
[1743710125344,9.4628,1788.4,1788.1,7.4277473]
[1743710125753,9.4628,1788.4,1788.1,1.8353773]
[1743710126158,5.59194,1788.3,1788.1,0.55]
[1743710126336,5.59194,1788.3,1787.9,5.59313]
[1743710126659,0.8208,1788.0,1787.7,5.59376]
[1743710126824,3.8208,1788.2,1787.7,0.05593397]
[1743710127157,3.8208,1788.2,1787.9,5.59292]
[1743710127356,5.59253,1788.1,1787.9,0.55]
[1743710127554,15.00554,1788.2,1787.9,0.55]
[1743710127757,3.8208,1788.2,1787.9,0.55]
[1743710127915,10.35403,1788.2,1787.8,0.55]
[1743710128114,9.41305,1788.2,1787.8,6.14321]
[1743710128356,5.59255,1788.1,1787.8,6.14321]
[1743710128534,9.41305,1788.2,1787.8,11.73656]
[1743710128739,15.00547,1788.2,1787.8,6.14321]
[1743710129664,3.8208,1788.2,1787.5,1.97253]
[1743710129846,0.7734,1787.6,1787.3,6.154466]
[1743710130049,0.7734,1787.6,1787.4,5.59467]
[1743710130416,0.7734,1787.6,1787.3,6.154466]
[1743710130621,0.7734,1787.6,1787.3,11.749336]
[1743710130868,0.7734,1787.6,1787.3,0.559486]
[1743710131165,6.36112,1787.3,1786.9,0.8089]
[1743710131317,8.59547,1787.2,1786.8,6.40544]
[1743710131515,8.59547,1787.2,1786.8,5.59654]
[1743710131775,8.59547,1787.2,1786.7,5.59686]
[1743710131960,5.59587,1787.1,1786.8,0.559686]
[1743710132112,11.19175,1787.1,1786.8,0.559686]
[1743710132633,6.38859,1787.0,1786.7,5.77173017]
[1743710133268,6.38859,1787.0,1786.7,0.17500017]
[1743710133457,5.59659,1786.8,1786.7,0.17500017]
[1743710133618,5.59659,1786.8,1786.5,5.77249017]
[1743710135137,5.59711,1786.7,1786.3,5.59811]
[1743710135319,0.7505,1786.6,1786.3,5.59811]
[1743710136068,6.34773,1786.6,1786.3,5.59811]
[1743710136482,5.59759,1786.5,1786.2,5.59817]
[1743710136792,5.59759,1786.5,1786.1,5.64861]
[1743710136915,5.59759,1786.5,1786.1,6.852647]
[1743710137119,11.67506437,1786.6,1786.1,1.254037]
[1743710137462,11.67506437,1786.6,1786.2,11.19665]
[1743710137668,11.67506437,1786.6,1786.3,5.59809]
[1743710138030,6.34776,1786.6,1786.3,5.59809]
[1743710138450,3.7505,1786.6,1786.3,11.19608]
[1743710138967,9.34792,1786.6,1786.2,5.59829]
[1743710139132,9.34792,1786.6,1786.3,5.59814]
[1743710139336,9.34792,1786.6,1786.2,6.163119]
[1743710139670,5.59766,1786.5,1786.2,0.55]
[1743710140024,5.59766,1786.5,1786.2,6.14845]
[1743710140362,9.34776,1786.6,1786.2,11.74674]
[1743710140561,0.7684,1786.8,1786.5,5.59739]
[1743710140850,3.7684,1786.8,1786.5,5.59739]
[1743710141418,9.36504,1786.8,1786.5,5.59739]
[1743710142456,15.38962696,1786.8,1786.5,0.55]
[1743710142644,9.79284696,1786.8,1786.5,0.55]
[1743710143040,4.19620696,1786.8,1786.5,5.5974]
[1743710143364,3.0,1786.8,1786.7,5.59691]
[1743710144372,3.0,1786.8,1786.7,6.14691]
[1743710144770,0.7844,1787.1,1786.8,5.59659]
[1743710144970,0.7844,1787.1,1786.9,5.59602]
[1743710145176,3.7844,1787.1,1786.8,5.59649]
[1743710145344,9.38005,1787.1,1786.8,6.770825]
[1743710145738,9.79126806,1787.1,1786.8,6.770785]
[1743710146171,4.19560806,1787.1,1786.8,12.367245]
[1743710146372,4.19560806,1787.1,1786.8,6.770785]
[1743710146591,9.79125806,1787.1,1786.8,12.367275]
[1743710146887,15.38708806,1787.1,1786.8,6.770785]
[1743710147096,9.79125806,1787.1,1786.8,6.770785]
[1743710147443,9.79125806,1787.1,1786.7,6.14687]
[1743710147444,5.59645,1786.9,1786.7,0.55]
[1743710147645,6.40874,1786.7,1786.4,11.19557]
[1743710147845,6.40874,1786.7,1786.4,5.59775]
[1743710148290,0.8118,1786.7,1786.4,11.19549]
[1743710148590,0.8118,1786.7,1786.5,5.5974]
[1743710148743,5.592,1786.8,1786.6,0.55974]
[1743710148942,5.592,1786.8,1786.6,1.10974]
[1743710149647,5.592,1786.8,1786.4,5.59782]
[1743710149968,5.59692,1786.7,1786.4,5.59782]
[1743710153055,5.59692,1786.7,1786.4,5.59771]
[1743710153380,0.0561,1786.7,1786.6,5.59722]
[1743710153552,0.0561,1786.7,1786.6,6.14722]
[1743710153754,0.0561,1786.7,1786.6,7.401481]
[1743710157094,0.0561,1786.7,1786.6,7.45744656]
[1743710157295,0.0561,1786.7,1786.6,7.401481]
[1743710157695,0.0561,1786.7,1786.6,7.45744649]
[1743710157904,0.0561,1786.7,1786.6,7.401481]
[1743710158281,0.0561,1786.7,1786.6,7.45744649]
[1743710158677,0.0561,1786.7,1786.6,7.63245061]
[1743710160295,0.0561,1786.7,1786.6,7.57648512]
[1743710160916,0.0561,1786.7,1786.6,7.63245062]
[1743710161307,0.0561,1786.7,1786.6,8.41045062]
[1743710161799,0.0561,1786.7,1786.6,8.35448512]
[1743710162102,1e-05,1786.7,1786.6,8.41044163]
[1743710162306,1e-05,1786.7,1786.6,11.35448512]
[1743710163523,1e-05,1786.7,1786.6,13.39648512]
[1743710163819,1e-05,1786.7,1786.6,13.94648512]
[1743710169723,1e-05,1786.7,1786.6,8.35448512]
[1743710170434,1e-05,1786.7,1786.6,8.41044569]
[1743710171509,1e-05,1786.7,1786.6,8.41043999]
[1743710171713,1e-05,1786.7,1786.6,8.35448512]
[1743710178549,1e-05,1786.7,1786.6,8.35448512]
[1743710178756,1e-05,1786.7,1786.6,13.22457451]
[1743710179048,1e-05,1786.7,1786.6,13.16861941]
[1743710179450,1e-05,1786.7,1786.6,16.16861941]
[1743710181326,0.7627,1787.6,1787.5,5.5944]
[1743710181554,0.7627,1787.6,1787.5,6.1444]
[1743710184684,0.7835,1787.8,1787.7,5.5936]
[1743710184883,0.7835,1787.8,1787.7,6.1436]
[1743710185470,3.0,1788.1,1787.9,5.59313]
[1743710185883,11.18398,1788.3,1788.0,0.55]
[1743710186093,3.0,1788.1,1787.9,0.55]
[1743710186255,0.7701,1788.0,1787.9,0.55]
[1743710187074,0.7701,1788.0,1787.9,6.19907851]
[1743710187282,0.7848,1788.2,1788.1,0.55]
[1743710187860,0.7848,1788.2,1788.1,6.14252]
[1743710188360,5.95608534,1788.5,1788.3,5.59163]
[1743710188559,0.8166,1788.4,1788.3,6.14163]
[1743710188866,0.7951,1788.6,1788.4,0.55]
[1743710189073,0.7951,1788.6,1788.4,6.14147]
[1743710189270,0.7951,1788.6,1788.4,0.55]
[1743710189592,3.7951,1788.6,1788.4,0.55]
[1743710191505,6.40621,1788.3,1787.8,5.59334]
[1743710191661,3.0,1788.1,1787.8,11.18666]
[1743710191864,3.0,1788.1,1787.9,5.59292]
[1743710192291,3.0,1788.1,1787.9,0.55]
[1743710193180,3.0,1788.1,1787.9,6.14306]
[1743710193486,3.0,1788.1,1788.0,5.59284]
[1743710194501,3.0,1788.1,1787.9,6.14303]
[1743710194989,3.0,1788.1,1787.9,0.55]
[1743710195497,3.0,1788.1,1787.9,6.1431]
[1743710195995,8.59268,1788.1,1787.7,5.59371]
[1743710196202,0.8232,1788.0,1787.8,0.55]
[1743710196497,12.0092,1788.0,1787.8,0.55]
[1743710196697,5.59319,1787.9,1787.6,5.59397]
[1743710196872,0.8327,1787.8,1787.6,5.59397]
[1743710198401,0.8327,1787.8,1787.6,5.59394]
[1743710198768,0.8327,1787.8,1787.4,6.14467]
[1743710198769,5.59378,1787.7,1787.4,6.14467]
[1743710198968,0.7599,1787.6,1787.4,5.59467]
[1743710199469,0.7599,1787.6,1787.5,5.5944]
[1743710199890,0.7599,1787.6,1787.4,5.59467]
[1743710200700,0.7599,1787.6,1787.4,5.59462]
[1743710200917,0.7715,1787.9,1787.7,5.59377]
[1743710201224,0.7715,1787.9,1787.8,5.59346]
[1743710201890,0.7715,1787.9,1787.7,5.59363]
[1743710202305,0.7715,1787.9,1787.7,11.18727]
[1743710202500,5.59263,1788.1,1788.0,5.59284]
[1743710202501,0.8169,1788.1,1788.0,5.59284]
[1743710202718,0.8169,1788.1,1788.0,6.14284]
[1743710202910,0.8169,1788.1,1788.0,0.55]
[1743710203434,3.8169,1788.1,1787.8,5.59341]
[1743710203599,0.8169,1788.1,1787.8,6.14339]
[1743710203936,0.8169,1788.1,1787.9,5.59309]
[1743710204425,0.8169,1788.1,1788.0,0.55]
[1743710204624,3.41814348,1788.3,1788.0,6.14284]
[1743710204809,0.7888,1788.2,1788.0,6.14284]
[1743710204992,0.7888,1788.2,1788.0,0.55]
[1743710205798,0.7888,1788.2,1788.0,6.1428]
[1743710206311,0.7888,1788.2,1788.0,0.55]
[1743710207625,0.7888,1788.2,1788.0,6.14282]
[1743710207929,0.7888,1788.2,1788.0,0.55]
[1743710208824,6.38105,1788.2,1788.0,0.55]
[1743710209557,0.7888,1788.2,1788.0,0.55]
[1743710210708,6.38107,1788.2,1788.0,0.55]
[1743710211529,6.38107,1788.2,1788.0,0.72488629]
[1743710213612,6.38107,1788.2,1788.0,0.55]
[1743710214055,7.92097691,1788.2,1787.8,5.59341]
[1743710214244,5.59284,1788.0,1787.7,5.87345807]
[1743710214413,0.7849,1788.0,1787.7,11.46709807]
[1743710214613,0.7849,1788.0,1787.8,5.59346]
[1743710215161,0.7849,1788.0,1787.8,5.76823581]
[1743710215456,0.7781,1788.2,1788.0,5.59279]
[1743710215623,0.7781,1788.2,1788.0,5.59273]
[1743710216179,3.0,1788.3,1788.1,5.59228]
[1743710216342,0.7907,1788.4,1788.2,6.14208]
[1743710216548,0.8285,1788.6,1788.3,5.5917]
[1743710216758,3.8285,1788.6,1788.3,5.5917]
[1743710217282,3.8285,1788.6,1788.3,11.1835]
[1743710217643,9.41948,1788.6,1788.3,5.5917]
[1743710217848,5.59128,1788.5,1788.1,5.87229807]
[1743710218078,11.18274,1788.5,1788.2,0.55]
[1743710218379,3.8285,1788.6,1788.4,5.59141]
[1743710218572,3.0,1788.6,1788.4,11.18285]
[1743710218874,3.0,1788.6,1788.4,5.59141]
[1743710220336,9.35189,1788.4,1788.3,0.17485703]
[1743710221351,9.35189,1788.4,1788.1,0.17485703]
[1743710221567,0.7603,1788.4,1788.1,5.76719703]
[1743710222375,3.0,1788.3,1788.1,5.76719703]
[1743710222861,3.0,1788.3,1788.1,5.59234]
[1743710223479,3.7603,1788.4,1788.1,6.79383336]
[1743710223999,3.7603,1788.4,1788.2,5.59209]
[1743710224388,9.35191,1788.4,1788.1,6.79383336]
[1743710226485,9.35215,1788.4,1788.0,0.55]
[1743710226690,5.59201,1788.3,1788.0,6.14271]
[1743710226878,14.94368,1788.4,1788.0,6.14271]
[1743710227090,5.59201,1788.3,1788.0,6.14271]
[1743710227282,11.18418,1788.3,1788.0,0.55]
[1743710227791,5.59201,1788.3,1788.0,6.14279]
[1743710227991,11.18407,1788.3,1788.0,6.14279]
[1743710228179,5.59201,1788.3,1788.0,6.14279]
[1743710228789,11.18407,1788.3,1788.0,6.14279]
[1743710228963,5.59201,1788.3,1788.0,6.14279]
[1743710229379,11.18409,1788.3,1788.0,6.14279]
[1743710229889,5.59201,1788.3,1788.0,6.14279]
[1743710230504,11.18408,1788.3,1788.0,6.14279]
[1743710230703,11.18408,1788.3,1787.9,5.87285355]
[1743710230704,5.59221,1788.2,1787.9,5.87285355]
[1743710230906,6.40857,1788.1,1787.9,0.27980355]
[1743710231069,12.00125,1788.1,1787.9,0.27980355]
[1743710231267,5.59284,1788.0,1787.9,0.27980355]
[1743710232279,5.59284,1788.0,1787.7,11.46711355]
[1743710232507,5.59284,1788.0,1787.7,12.61382491]
[1743710233613,5.59284,1788.0,1787.8,0.1749102]
[1743710233764,11.18583,1788.0,1787.8,0.1749102]
[1743710234070,9.37805,1787.9,1787.8,0.1749102]
[1743710234679,14.97135,1787.9,1787.6,0.27988065]
[1743710234875,5.59347,1787.8,1787.6,0.27988065]
[1743710236013,5.59347,1787.8,1787.5,5.87414065]
[1743710236193,4.80911045,1787.6,1787.5,0.27988065]
[1743710236362,11.20300045,1787.6,1787.5,0.27988065]
[1743710236562,14.20300045,1787.6,1787.5,0.27988065]
[1743710236767,14.16150045,1787.6,1787.5,0.27988065]
[1743710236967,16.1370415,1787.6,1787.5,0.27988065]
[1743710237270,5.59444,1787.5,1787.2,0.1749662]
[1743710238838,0.8194,1787.4,1787.0,5.87582065]
[1743710239133,6.41414,1787.4,1787.0,5.87572065]
[1743710240299,0.8194,1787.4,1787.1,5.59565]
[1743710241028,3.0,1787.6,1787.2,0.55]
[1743710241202,3.0,1787.6,1787.4,5.5946]
[1743710241407,3.8287,1787.7,1787.4,11.1892]
[1743710241828,3.8287,1787.7,1787.4,5.5946]
[1743710242327,0.8287,1787.7,1787.4,5.5946]
[1743710242619,0.8287,1787.7,1787.3,6.37316]
[1743710242799,6.42248,1787.7,1787.4,0.55]
[1743710243000,1.24028996,1787.7,1787.4,0.55]
[1743710243309,1.24028996,1787.7,1787.4,6.14466]
[1743710243622,11.64334041,1787.7,1787.4,0.55]
[1743710244621,0.41158996,1787.7,1787.4,2.499876]
[1743710244788,17.18148579,1787.9,1787.5,5.59426]
[1743710244994,17.18148579,1787.9,1787.5,11.18854]
[1743710245222,6.77918534,1787.9,1787.6,5.59385]
[1743710245423,3.0,1788.0,1787.7,0.55]
[1743710245723,3.0,1788.0,1787.7,6.14374]
[1743710246104,3.41461358,1788.0,1787.7,6.14374]
[1743710246304,3.41461358,1788.0,1787.7,7.317499]
[1743710247042,9.00759358,1788.0,1787.7,0.55]
[1743710247535,14.60061358,1788.0,1787.7,0.55]
[1743710247705,9.00759358,1788.0,1787.7,0.55]
[1743710247906,3.41461358,1788.0,1787.5,5.59435]
[1743710248102,0.7721,1787.8,1787.5,5.59435]
[1743710248354,6.36556,1787.8,1787.5,1.251494]
[1743710248509,6.36556,1787.8,1787.4,11.73919]
[1743710248711,6.36556,1787.8,1787.4,11.73914]
[1743710248946,6.36556,1787.8,1787.4,11.73912]
[1743710249214,6.36556,1787.8,1787.4,6.14456]
[1743710249702,6.36556,1787.8,1787.4,11.73916]
[1743710249907,6.36556,1787.8,1787.4,7.876976]
[1743710250152,6.36556,1787.8,1787.4,13.471556]
[1743710250355,6.36556,1787.8,1787.4,7.876976]
[1743710250707,6.36556,1787.8,1787.4,13.471546]
[1743710250957,6.36556,1787.8,1787.4,7.876976]
[1743710251521,0.7721,1787.8,1787.4,7.876976]
[1743710251833,0.7721,1787.8,1787.6,5.594]
[1743710252318,0.7721,1787.8,1787.5,5.59426]
[1743710252521,6.36559,1787.8,1787.5,5.59426]
[1743710252856,6.36559,1787.8,1787.4,11.7393]
[1743710253675,6.36559,1787.8,1787.4,6.14461]
[1743710254025,6.36559,1787.8,1787.4,6.759071]
[1743710254251,5.59378,1787.7,1787.4,1.164461]
[1743710254459,11.18775,1787.7,1787.3,5.59498]
[1743710254971,6.36052,1787.6,1787.3,5.59498]
[1743710255654,0.7664,1787.6,1787.3,5.59498]
[1743710255863,0.7664,1787.6,1787.3,5.59493]
[1743710256264,0.7664,1787.6,1787.3,6.154423]
[1743710256447,0.7664,1787.6,1787.4,5.59459]
[1743710256759,0.7664,1787.6,1787.4,5.59458]
[1743710257556,0.7664,1787.6,1787.3,6.154393]
[1743710258350,0.7664,1787.6,1787.4,5.59469]
[1743710258933,0.7664,1787.6,1787.3,6.154393]
[1743710259353,0.7664,1787.6,1787.3,0.559493]
[1743710259755,0.7664,1787.6,1787.3,6.154423]
[1743710259955,0.7664,1787.6,1787.3,0.559493]
[1743710260159,6.36054,1787.6,1787.3,0.559493]
[1743710260355,6.36054,1787.6,1787.2,5.87513143]
[1743710260556,6.36054,1787.6,1787.4,0.17494733]
[1743710261067,6.36051,1787.6,1787.4,0.17494733]
[1743710262265,0.7664,1787.6,1787.2,5.87523143]
[1743710262447,0.7664,1787.6,1787.2,5.87517143]
[1743710262648,6.36058,1787.6,1787.2,6.60239323]
[1743710263069,0.7664,1787.6,1787.2,1.00715323]
[1743710263260,11.23254045,1787.3,1787.2,0.27993143]
[1743710264167,5.59538,1787.2,1786.9,0.45492541]
[1743710265478,3.7747,1787.4,1787.1,5.59564]
[1743710265652,3.7747,1787.4,1787.0,6.14587]
[1743710265842,9.36952,1787.4,1787.1,0.614587]
[1743710267078,3.7747,1787.4,1787.1,0.614587]
[1743710267575,0.7747,1787.4,1787.1,6.210217]
[1743710267751,0.7747,1787.4,1787.1,0.614587]
[1743710268174,6.3695,1787.4,1787.1,0.614587]
[1743710268469,6.3695,1787.4,1787.0,6.14583]
[1743710268674,6.3695,1787.4,1787.0,6.42576143]
[1743710268870,11.96439,1787.4,1787.0,6.42576143]
[1743710269052,12.39234465,1787.4,1787.0,0.82993143]
[1743710269256,6.79745465,1787.4,1787.0,0.82993143]
[1743710269454,6.79745465,1787.4,1787.0,7.71057857]
[1743710269680,12.39233465,1787.4,1787.0,7.71057857]
[1743710270080,5.59503,1787.3,1787.0,0.27993143]
[1743710270255,5.59503,1787.3,1786.9,5.59622]
[1743710270571,6.79745465,1787.4,1786.9,5.59615]
[1743710270982,6.79745465,1787.4,1787.0,5.59588]
[1743710271472,6.79745465,1787.4,1786.9,5.59618]
[1743710271681,6.79745465,1787.4,1787.0,5.59584]